Cogmind - Beta 9.6 @@@ ROGUE MODE // 2020.04.24 @ 22:33:38 Player: lsend Result: Destroyed by G-47 Trooper with Particle Gun Performance ------------- Evolutions (2) 1000 Regions Visited (4) 800 Robots Destroyed (6) 30 Value Destroyed (70) 70 Prototype IDs (0) 0 Alien Tech Used (0) 0 Bonus (570) 570 TOTAL SCORE: 2470 Bonus ------- Pacifist 470 Follower Combat Kills 100 Cogmind --------- Core Integrity 0/550 Matter 240/300 Energy 100/100 System Corruption 0% Temperature Cool (18) Movement Core (50) Location -8/Materials Parts ------- > --- POWER (1) -------- (None) > --- PROPULSION (4) --- (None) > --- UTILITY (4) ------ (None) > --- WEAPON (2) ------- (None) > --- INVENTORY (4) ---- Light Nuclear Core Light Nuclear Core Flight Unit Flight Unit Peak State ------------ > --- POWER ------------ (None) > --- PROPULSION ------- Light Treads Light Treads Flight Unit > --- UTILITY ---------- Structural Scanner Improved Sensor Array > --- WEAPON ----------- (None) > --- INVENTORY -------- Flight Unit Flight Unit Grenade Launcher [Rating: 6] Favorites ----------- Power None Propulsion Light Treads Treads Light Treads Flight Unit Flight Unit Utility Structural Scanner Device Structural Scanner Weapon Grenade Launcher Launcher Grenade Launcher Build | -11 -10 -10 -9 -8 ------- Run | Scr Mat Min Mat Mat Slots Evolved 4 | . . . 2 2 Power . | . . . . . Propulsion 2 | . . . 1 1 Utility 2 | . . . 1 1 Weapon . | . . . . . Parts Attached 8 | 2 . 1 1 4 Power . | . . . . . Engine . | . . . . . Core . | . . . . . Reactor . | . . . . . Propulsion 5 | 2 . . . 3 Treads 2 | 2 . . . . Leg . | . . . . . Wheel . | . . . . . Hover . | . . . . . Flight 3 | . . . . 3 Utility 2 | . . 1 1 . Device 2 | . . 1 1 . Storage . | . . . . . Processor . | . . . . . Hackware . | . . . . . Protection . | . . . . . Artifact . | . . . . . Weapon 1 | . . . . 1 Energy Gun . | . . . . . Energy Cannon . | . . . . . Ballistic Gun . | . . . . . Ballistic Cannon . | . . . . . Launcher 1 | . . . . 1 Special Weapon . | . . . . . Impact Weapon . | . . . . . Slashing Weapon . | . . . . . Piercing Weapon . | . . . . . Special Melee Weapon . | . . . . . Unidentified Prototypes . | . . . . . Parts Lost 8 | . . . . 8 Power . | . . . . . Propulsion 5 | . . . . 5 Utility 2 | . . . . 2 Weapon 1 | . . . . 1 Highest Loss Streak 8 | . . . . 8 Average Slot Usage (%) 34 | . 28 33 43 26 Treads 22 | . 28 28 22 6 Flight 1 | . . . . 6 Device 10 | . . 5 21 12 Naked Turns 1 | . . . . 1 Heaviest Build 4 | . . 1 2 4 Greatest Support 8 | 3 3 3 3 8 Greatest Overweight (x) . | . . . . . Average Overweight (x) . | . . . . . Largest Inventory Capacity 4 | 4 4 4 4 4 Average Capacity 4 | 4 4 4 4 4 Most Carried 4 | . . 1 4 4 Average Carried 1 | . . . 3 3 Final Capacity 4 | 4 4 4 4 4 Final Carried 4 | . . 1 4 4 Class Distribution -------------------- 100% | Mutant Dominant Class ---------------- Mutant | -10/Materials Mutant | -10/Mines Mutant | -9/Materials Mutant | -8/Materials Resources | -11 -10 -10 -9 -8 ----------- Run | Scr Mat Min Mat Mat Matter Collected 250 | 220 . 10 10 10 Remotely . | . . . . . Salvage Created 49 | . . . . 49 Parts 5 | . . . . 5 Haulers Intercepted 1 | . . . . 1 Recyclers Shooed . | . . . . . Parts Field Recycled . | . . . . . Retrieved Matter . | . . . . . Parts Self-Destructed . | . . . . . Prevented . | . . . . . Kills | -11 -10 -10 -9 -8 ------- Run | Scr Mat Min Mat Mat Combat Hostiles Destroyed 4 | . . . . 4 AOE 4 | . . . . 4 Classes Destroyed 3 | . . . . 3 Hauler 1 | . . . . 1 Mechanic 1 | . . . . 1 Swarmer 4 | . . . . 4 Best Kill Streak 3 | . . . . 3 Combat Bots Only 3 | . . . . 3 Max Kills in Single Turn 3 | . . . . 3 Gunslinging . | . . . . . Exploded 1 | . . . . 1 Melee . | . . . . . Uniques/NPCs Destroyed . | . . . . . Combat | -11 -10 -10 -9 -8 -------- Run | Scr Mat Min Mat Mat Damage Taken 1127 | . 132 13 212 770 Core 658 | . 12 13 76 557 Absorbed by Shields . | . . . . . Core Remaining (%) 90 | 100 . 90 81 . Volleys Fired 6 | . . . . 6 Largest 1 | . . . . 1 Hottest 30 | . . . . 30 Shots Fired 6 | . . . . 6 Gun . | . . . . . Cannon . | . . . . . Launcher 6 | . . . . 6 Special . | . . . . . Kinetic . | . . . . . Thermal . | . . . . . Explosive 6 | . . . . 6 Electromagnetic . | . . . . . Robot Hit Streak 2 | . . . . 2 Robot Miss Streak 1 | . . . . 1 Penetration Max . | . . . . . Secondary Targets . | . . . . . Shots Hit Robots 2 | . . . . 2 Core Hits 13 | . . . . 13 Critical Hits . | . . . . . Critical Kills . | . . . . . Critical Parts Destroyed . | . . . . . Melee Attacks . | . . . . . Impact . | . . . . . Slashing . | . . . . . Piercing . | . . . . . Sneak Attacks . | . . . . . Combat Hostiles . | . . . . . Follow-up Attacks . | . . . . . Damage Inflicted 558 | . . . . 558 Guns . | . . . . . Cannons . | . . . . . Explosions 558 | . . . . 558 Melee . | . . . . . Ramming . | . . . . . Kinetic . | . . . . . Thermal . | . . . . . Explosive 558 | . . . . 558 Electromagnetic . | . . . . . Impact . | . . . . . Slashing . | . . . . . Piercing . | . . . . . Highest Corruption . | . . . . . Average Corruption . | . . . . . Corruption Purged . | . . . . . Overload Shots . | . . . . . Overflow Damage 5 | . . . . 5 Projectiles . | . . . . . Explosions 5 | . . . . 5 Melee . | . . . . . Knockbacks . | . . . . . Impact . | . . . . . Kinetic . | . . . . . Secondary . | . . . . . Self-Inflicted Damage 54 | . . . . 54 Shots 2 | . . . . 2 Rammed . | . . . . . Targets Rammed . | . . . . . Kicked . | . . . . . Crushed . | . . . . . Highest Temperature . | . . . . . Average Temperature . | . . . . . Received Heat Transfer 249 | . 75 9 66 99 Siege Activations . | . . . . . Robots Corrupted . | . . . . . Combat Hostiles . | . . . . . Parts Fried . | . . . . . Impact Corruptions . | . . . . . Robots Melted . | . . . . . Combat Hostiles . | . . . . . Parts Melted . | . . . . . Heat Transferred . | . . . . . Parts Sabotaged . | . . . . . Parts Stolen . | . . . . . Parts Stripped . | . . . . . Power Chain Reactions . | . . . . . Missiles Intercepted . | . . . . . Alert | -11 -10 -10 -9 -8 ------- Run | Scr Mat Min Mat Mat Peak Influence 315 | . 65 63 271 315 Average Influence 94 | . 29 35 163 193 Maximum Alert Level 1 | . . . 1 1 Low Security (%) 79 | 100 100 100 53 50 Level 1 20 | . . . 46 49 Level 2 . | . . . . . Level 3 . | . . . . . Level 4 . | . . . . . Level 5 . | . . . . . High Security . | . . . . . Max Security . | . . . . . Squads Dispatched 4 | . 2 . . 2 Investigation 1 | . 1 . . . Extermination . | . . . . . Reinforcement 3 | . 1 . . 2 Assault . | . . . . . Garrison . | . . . . . Intercept . | . . . . . Construction Impeded 1 | . . . . 1 Haulers Reinforced . | . . . . . Stealth | -11 -10 -10 -9 -8 --------- Run | Scr Mat Min Mat Mat Distress Signals 4 | . 1 . 2 1 Communications Jammed . | . . . . . Distress Signals . | . . . . . Times Spotted 60 | . 12 2 14 32 Peak Tracking Total 22 | . 9 2 7 22 Tactical Retreats 2 | . 1 1 . . Traps | -11 -10 -10 -9 -8 ------- Run | Scr Mat Min Mat Mat Traps Triggered 1 | . 1 . . . Indirectly . | . . . . . Trap Hack Attempts . | . . . . . Triggered . | . . . . . Disarmed . | . . . . . Reprogrammed . | . . . . . Reused . | . . . . . Traps Extracted . | . . . . . Installed . | . . . . . Triggered . | . . . . . Machines | -11 -10 -10 -9 -8 ---------- Run | Scr Mat Min Mat Mat Machines Disabled . | . . . . . Max in Single Turn . | . . . . . Machines Sabotaged . | . . . . . Garrisons Compromised . | . . . . . Overloaded Fab Kills . | . . . . . Fab Network Shutdowns . | . . . . . Hacking | -11 -10 -10 -9 -8 --------- Run | Scr Mat Min Mat Mat Machines Accessed 8 | . 4 . 2 2 Terminals 8 | . 4 . 2 2 Fabricators . | . . . . . Repair Stations . | . . . . . Recycling Units . | . . . . . Scanalyzers . | . . . . . Garrison Access . | . . . . . Total Hacks 19 | . 9 . 4 6 Successful 6 | . 3 . 1 2 Failed 13 | . 6 . 3 4 Catastrophic 2 | . 1 . 1 . Database Lockouts . | . . . . . Manual 12 | . 7 . 4 1 Terminals 19 | . 9 . 4 6 Fabricators . | . . . . . Repair Stations . | . . . . . Recycling Units . | . . . . . Scanalyzers . | . . . . . Garrison Access . | . . . . . Terminal Hacks 5 | . 2 . 1 2 Level Access Points 1 | . . . . 1 Branch Access Points 1 | . . . 1 . Locate Traps 1 | . 1 . . . Zone Layout 2 | . 1 . . 1 Fabricator Hacks . | . . . . . Repair Station Hacks . | . . . . . Recycling Unit Hacks . | . . . . . Scanalyzer . | . . . . . Garrison Access Hacks . | . . . . . Unauthorized Hacks 1 | . 1 . . . Terminals 1 | . 1 . . . Botnet 1 | . 1 . . . Fabricators . | . . . . . Repair Stations . | . . . . . Recycling Units . | . . . . . Scanalyzers . | . . . . . Garrison Access . | . . . . . Data Cores Recovered . | . . . . . Used . | . . . . . Hacking Detections 7 | . 4 . 2 1 Full Trace Events 1 | . . . 1 . Feedback Events . | . . . . . Feedback Blocked . | . . . . . Robot Schematics Acquired . | . . . . . Robots Built . | . . . . . Matter . | . . . . . Time . | . . . . . Total Robot Build Rating . | . . . . . Part Schematics Acquired . | . . . . . Parts Built . | . . . . . Matter . | . . . . . Time . | . . . . . Total Part Build Rating . | . . . . . Parts Repaired . | . . . . . Time . | . . . . . Parts Recycled . | . . . . . Recycled Matter . | . . . . . Retrieved Matter . | . . . . . Retrieved Components . | . . . . . Parts Scanalyzed . | . . . . . Part Schematics Acquired . | . . . . . Parts Damaged . | . . . . . Bothacking | -11 -10 -10 -9 -8 ------------ Run | Scr Mat Min Mat Mat Used RIF Installer . | . . . . . Robots Hacked . | . . . . . Non-combat . | . . . . . Combat . | . . . . . Robot Hacks Applied . | . . . . . Relay Couplers Released . | . . . . . Robots Rewired . | . . . . . Allies Hacked . | . . . . . Hacks Repelled . | . . . . . Allies | -11 -10 -10 -9 -8 -------- Run | Scr Mat Min Mat Mat Total Allies 3 | . . 3 . . Largest Group 3 | . . 3 2 . Highest-Rated Group 40 | . . 40 24 . Highest-Rated Ally 16 | . . 16 16 . Total Orders . | . . . . . Ally Attacks 28 | . . 11 17 . Total Damage 304 | . . 138 166 . Kills 9 | . . 1 8 . Allies Corrupted . | . . . . . Allies Melted . | . . . . . Intel | -11 -10 -10 -9 -8 ------- Run | Scr Mat Min Mat Mat Robot Analysis Total . | . . . . . Derelict Logs Recovered 2 | . . 2 . . Drone Launches . | . . . . . Drone Recoveries . | . . . . . Exploration | -11 -10 -10 -9 -8 ------------- Run | Scr Mat Min Mat Mat Turns Passed 527 | 15 60 223 140 89 Spaces Moved 857 | 25 115 323 241 153 Core 770 | 25 115 323 241 66 Treads . | . . . . . Legs . | . . . . . Wheels . | . . . . . Hover . | . . . . . Flight 87 | . . . . 87 Fastest Speed 37 | 50 50 50 50 37 Average Speed 48 | 50 50 50 50 44 Slowest Speed 50 | 50 50 50 50 50 Overloaded Moves . | . . . . . Propulsion Burnouts . | . . . . . Robots Hopped 5 | . . . . 5 Cave-ins Triggered . | . . . . . Exploration Rate (%) 34 | 3 39 62 33 33 Regions Visited 4 Branch Regions 1 Pre-discovered Areas 1 | . . 1 . . Known Exits Taken 1 | . . . 1 . Unknown Exits Taken 3 | 1 1 1 . . Scrap Searched 3 | . . 3 . . Spaces Dug . | . . . . . Terrain Destroyed 23 | . . . . 23 Melee . | . . . . . Projectile . | . . . . . AOE 23 | . . . . 23 Actions | -11 -10 -10 -9 -8 --------- Run | Scr Mat Min Mat Mat Total 946 | 26 116 383 259 162 Wait 78 | . 2 59 15 2 Move 843 | 24 114 322 240 143 Hop 5 | . . . . 5 Pick Up 6 | . . 1 3 2 Fast Attach 6 | 2 . 1 1 2 Attach 2 | . . . . 2 Detach . | . . . . . Swap . | . . . . . Drop . | . . . . . Fire 6 | . . . . 6 Melee . | . . . . . Ram . | . . . . . Kick . | . . . . . Crush . | . . . . . Escape Stasis . | . . . . . Rewire . | . . . . . Trap . | . . . . . Miscellaneous . | . . . . . Route ------- -11/Scrapyard -10/Materials (discovered 2 exits: *Mat / [*Min]) -10/Mines -9/Materials (discovered 4 exits: *Mat x2 / Min / Sto) -8/Materials (discovered 3 exits: Fac x3) History --------- Turn | Location | Event 7 | -11/Scrapyard | Discovered new exit (range 14) 16 | -11/Scrapyard | Entered Materials 56 | -10/Materials | Discovered new exit (range 13) 70 | -10/Materials | Discovered new exit (range 12) 76 | -10/Materials | Entered Mines 81 | -10/Mines | Assisted by bots powering up and referring to "LRC-V3" 156 | -10/Mines | Assisted by bots powering up and referring to "LRC-V3" 212 | -10/Mines | Learned location of Zion (-6) 215 | -10/Mines | Discovered new exit (range 7) 215 | -10/Mines | Learned 2 Materials zone layouts 299 | -10/Mines | Entered Materials 299 | -9/Materials | Accompanied by 2 allies 299 | -9/Materials | Evolved 2 slots: Propulsion x1, Utility x1 300 | -9/Materials | Identified exit to Materials 324 | -9/Materials | Build established: Mutant 399 | -9/Materials | Discovered exit to Materials (range 5) 407 | -9/Materials | Identified exit to Mines 407 | -9/Materials | Identified exit to Storage 439 | -9/Materials | Entered another Materials area 439 | -8/Materials | Evolved 2 slots: Propulsion x1, Utility x1 488 | -8/Materials | Core integrity fell below 50% 521 | -8/Materials | Identified exit to Factory 523 | -8/Materials | Core integrity fell below 20% 528 | -8/Materials | Destroyed by G-47 Trooper with Particle Gun Last Messages --------------- 00503_ K-01 Serf collects debris. 00507_ A-02 Transporter destroyed. 00507_ Destroyed Flight Unit. 00507_ S-10 Pest destroyed. 00507_ M-28 Smith destroyed. 00507_ Grenade Launcher destroyed. 00508_ K-01 Serf collects debris. 00510_ Acquired Lgt. Nuclear Core. 00510_ K-01 Serf collects debris. 00520_ Flight Unit destroyed. 00521_ Connecting with Terminal... >>Access(Main) Found 3 level access points to Factory: (91,18) (18,5) (5,85) Map updated. 00524_ S-10 Pest destroyed. 00527_ K-01 Serf collects debris. 00527_ Imp. Sensor Array destroyed. Map ----- +----------------------------------------------------+ | | | | | | | | | | | | | | | | | | | ?????????????????????????????????????????????? | | ?????????????????????????????????????????????? | | ?????????????????????????????????????????????? | | ?????????????????????????????????????????????? | | ?????????????????????????????????????????????? | | ?????????????????????????????????????????????? | | ?????????????????????????????????????????????? | | ?????????????????????????????????????????????? | | ????????????###########+####?????????????????? | | ????????????# #?????????????????? | | ???????###+## ##+###????????????? | | ???????# =%= #????????????? | | ???????+ [ k#????????????? | | ???????# T """g #????????????? | | ?????????# """""g #????????????? | | ?????????# s""""" ??????????????? | | ???????### """""@ #?????????????????? | | ???????#"" """ #?????????????????? | | ???????#"T s s #?????????